[Event "Early-Titled-Tuesday-Blitz-May-07-2024"]
[Site "Chess.com"]
[Date "2024.05.07"]
[Round "4"]
[White "Firouzja2003"]
[Black "ckgchess"]
[Result "1-0"]
[WhiteElo "3209"]
[BlackElo "2909"]
[TimeControl "180+1"]
[EndTime "8:43:14 PDT"]
[Termination "Firouzja2003 won by resignation"]

1. e4 {[%clk 0:03:00.9]} 1... c5 {[%clk 0:03:00.2]} 2. Nf3 {[%clk 0:02:58.5]}
2... d6 {[%clk 0:03:00.8]} 3. d4 {[%clk 0:02:53.5]} 3... cxd4 {[%clk 0:03:01.7]}
4. Nxd4 {[%clk 0:02:54.1]} 4... Nf6 {[%clk 0:03:02.1]} 5. Nc3 {[%clk 0:02:46.4]}
5... e5 {[%clk 0:03:00.2]} 6. Bb5+ {[%clk 0:02:41]} 6... Nbd7 {[%clk 0:03:00.2]}
7. Nf5 {[%clk 0:02:36.5]} 7... a6 {[%clk 0:03:00.5]} 8. Ba4 {[%clk 0:02:34.2]}
8... b5 {[%clk 0:02:59.5]} 9. Bb3 {[%clk 0:02:34.5]} 9... Nc5 {[%clk 0:03:00.3]}
10. Bg5 {[%clk 0:02:31.7]} 10... Bxf5 {[%clk 0:02:58.9]} 11. exf5 {[%clk
0:02:32]} 11... Be7 {[%clk 0:02:59.6]} 12. Bxf6 {[%clk 0:02:27.4]} 12... Bxf6
{[%clk 0:03:00.5]} 13. Nd5 {[%clk 0:02:23.9]} 13... e4 {[%clk 0:02:58.8]} 14.
Rb1 {[%clk 0:02:14.4]} 14... O-O {[%clk 0:02:56.5]} 15. O-O {[%clk 0:02:13.9]}
15... Re8 {[%clk 0:02:56.6]} 16. Qg4 {[%clk 0:02:09.4]} 16... Re5 {[%clk
0:02:52.5]} 17. Rbd1 {[%clk 0:02:07.9]} 17... Rc8 {[%clk 0:02:36.1]} 18. c3
{[%clk 0:02:00.9]} 18... Nxb3 {[%clk 0:02:32.8]} 19. axb3 {[%clk 0:02:00.7]}
19... Rc5 {[%clk 0:02:33.2]} 20. Ne3 {[%clk 0:01:55.6]} 20... a5 {[%clk
0:01:57.5]} 21. Rfe1 {[%clk 0:01:55.5]} 21... g6 {[%clk 0:01:51.2]} 22. b4
{[%clk 0:01:46.2]} 22... axb4 {[%clk 0:01:51]} 23. cxb4 {[%clk 0:01:47.1]} 23...
Rc8 {[%clk 0:01:36.8]} 24. fxg6 {[%clk 0:01:45.8]} 24... hxg6 {[%clk 0:01:36.9]}
25. Nd5 {[%clk 0:01:46.3]} 25... Rc2 {[%clk 0:01:07.4]} 26. Rxe4 {[%clk
0:01:37.7]} 26... Rxe4 {[%clk 0:00:54.1]} 27. Qxe4 {[%clk 0:01:37.5]} 27... Rxb2
{[%clk 0:00:52.8]} 28. g3 {[%clk 0:01:32.6]} 28... Kg7 {[%clk 0:00:52.6]} 29. h4
{[%clk 0:01:23.9]} 29... Be5 {[%clk 0:00:43]} 30. Ne3 {[%clk 0:01:16.8]} 30...
Qf6 {[%clk 0:00:39.5]} 31. f4 {[%clk 0:01:04.5]} 31... Ra2 {[%clk 0:00:10.6]}
32. Ng4 {[%clk 0:00:19.8]} 32... Qf5 {[%clk 0:00:11.2]} 33. Qxf5 {[%clk
0:00:17.9]} 33... gxf5 {[%clk 0:00:12.1]} 34. Ne3 {[%clk 0:00:18.8]} 34... Bc3
{[%clk 0:00:10.8]} 35. Nxf5+ {[%clk 0:00:18.6]} 35... Kg6 {[%clk 0:00:10.9]} 36.
Nxd6 {[%clk 0:00:18.4]} 36... Bxb4 {[%clk 0:00:11.3]} 37. Nxb5 {[%clk
0:00:18.5]} 37... Bc5+ {[%clk 0:00:12.1]} 38. Kh1 {[%clk 0:00:14.1]} 38... Rb2
{[%clk 0:00:09.8]} 39. Nc3 {[%clk 0:00:13]} 39... Ba7 {[%clk 0:00:04.6]} 40. Rd5
{[%clk 0:00:09.8]} 40... f5 {[%clk 0:00:03.9]} 41. Nb5 {[%clk 0:00:08.4]} 41...
Be3 {[%clk 0:00:01.9]} 42. Nd6 {[%clk 0:00:08.5]} 42... Bf2 {[%clk 0:00:01.4]}
43. Nxf5 {[%clk 0:00:08.1]} 43... Be1 {[%clk 0:00:01.1]} 44. Ne3 {[%clk
0:00:07.5]} 44... Kf6 {[%clk 0:00:00.3]} 45. Rf5+ {[%clk 0:00:07.5]} 45... Ke6
{[%clk 0:00:00.7]} 46. Re5+ {[%clk 0:00:07.4]} 46... Kf7 {[%clk 0:00:01.5]} 47.
Nc4 {[%clk 0:00:05.4]} 47... Rb1 {[%clk 0:00:02]} 48. Kg2 {[%clk 0:00:05.8]}
48... Bc3 {[%clk 0:00:02.3]} 49. Re2 {[%clk 0:00:06]} 49... Rb4 {[%clk
0:00:02.8]} 50. Ne5+ {[%clk 0:00:06]} 50... Kf6 {[%clk 0:00:02.7]} 51. Ng4+
{[%clk 0:00:06.7]} 51... Kf5 {[%clk 0:00:03.2]} 52. Ne3+ {[%clk 0:00:07.3]}
52... Kg6 {[%clk 0:00:03.1]} 53. Nd5 {[%clk 0:00:07.6]} 1-0

[Event "Early-Titled-Tuesday-Blitz-May-07-2024"]
[Site "Chess.com"]
[Date "2024.05.07"]
[Round "4"]
[White "KorolDimitriy75"]
[Black "RojonR"]
[Result "0-1"]
[WhiteElo "2364"]
[BlackElo "2544"]
[TimeControl "180+1"]
[EndTime "8:43:14 PDT"]
[Termination "RojonR won on time"]

1. d4 {[%clk 0:03:00.9]} 1... Nf6 {[%clk 0:02:59.2]} 2. c4 {[%clk 0:03:01]} 2...
e6 {[%clk 0:02:59.1]} 3. Nc3 {[%clk 0:03:01.1]} 3... Bb4 {[%clk 0:02:58]} 4. Qc2
{[%clk 0:03:01]} 4... d5 {[%clk 0:02:56.4]} 5. cxd5 {[%clk 0:03:00.8]} 5... Qxd5
{[%clk 0:02:57.1]} 6. e3 {[%clk 0:02:59.2]} 6... O-O {[%clk 0:02:53.1]} 7. Bd2
{[%clk 0:02:57.9]} 7... Bxc3 {[%clk 0:02:52.7]} 8. bxc3 {[%clk 0:02:58.8]} 8...
c5 {[%clk 0:02:52.4]} 9. Nf3 {[%clk 0:02:58.7]} 9... Nc6 {[%clk 0:02:51.6]} 10.
Be2 {[%clk 0:02:45.3]} 10... b6 {[%clk 0:02:42.5]} 11. O-O {[%clk 0:02:44.5]}
11... Bb7 {[%clk 0:02:42.2]} 12. Rfd1 {[%clk 0:02:40.3]} 12... Rac8 {[%clk
0:02:41.6]} 13. Qa4 {[%clk 0:02:32.1]} 13... Ne4 {[%clk 0:02:35.4]} 14. Be1
{[%clk 0:02:30.8]} 14... Qf5 {[%clk 0:02:15.6]} 15. Rac1 {[%clk 0:02:22.7]}
15... Rfd8 {[%clk 0:02:00.9]} 16. Ba6 {[%clk 0:01:57.6]} 16... Bxa6 {[%clk
0:01:52.6]} 17. Qxa6 {[%clk 0:01:58.5]} 17... g5 {[%clk 0:01:41.1]} 18. h3
{[%clk 0:01:27.2]} 18... h5 {[%clk 0:01:28.4]} 19. Qd3 {[%clk 0:00:51.6]} 19...
c4 {[%clk 0:01:16.2]} 20. Qc2 {[%clk 0:00:42.7]} 20... g4 {[%clk 0:01:05]} 21.
hxg4 {[%clk 0:00:28.9]} 21... hxg4 {[%clk 0:01:05.9]} 22. Nd2 {[%clk 0:00:29.2]}
22... Nxd2 {[%clk 0:00:34.5]} 23. Qxf5 {[%clk 0:00:29]} 23... exf5 {[%clk
0:00:35.4]} 24. Bxd2 {[%clk 0:00:28.7]} 24... Ne7 {[%clk 0:00:34.8]} 25. f3
{[%clk 0:00:27.3]} 25... Kg7 {[%clk 0:00:30.5]} 26. Kf2 {[%clk 0:00:25.9]} 26...
Rh8 {[%clk 0:00:25.2]} 27. e4 {[%clk 0:00:19.1]} 27... fxe4 {[%clk 0:00:24.7]}
28. fxe4 {[%clk 0:00:18.5]} 28... f5 {[%clk 0:00:25.4]} 29. Re1 {[%clk
0:00:17.5]} 29... Kf7 {[%clk 0:00:23.7]} 30. Bg5 {[%clk 0:00:14.8]} 30... Nc6
{[%clk 0:00:13]} 31. exf5 {[%clk 0:00:14.5]} 31... Rh5 {[%clk 0:00:12.6]} 32.
Bf4 {[%clk 0:00:12.4]} 32... Rxf5 {[%clk 0:00:12.5]} 33. Kg3 {[%clk 0:00:13.1]}
33... Ne7 {[%clk 0:00:07.2]} 34. Re4 {[%clk 0:00:11.7]} 34... Nd5 {[%clk
0:00:06.6]} 35. Bd2 {[%clk 0:00:11]} 35... b5 {[%clk 0:00:04]} 36. Rxg4 {[%clk
0:00:10.5]} 36... Re8 {[%clk 0:00:03.4]} 37. Re1 {[%clk 0:00:10.7]} 37... Rxe1
{[%clk 0:00:03.2]} 38. Bxe1 {[%clk 0:00:11.6]} 38... Ne3 {[%clk 0:00:03.4]} 39.
Rh4 {[%clk 0:00:10.2]} 39... Nf1+ {[%clk 0:00:03.2]} 40. Kh3 {[%clk 0:00:09.7]}
40... Ne3 {[%clk 0:00:02.8]} 41. Kg3 {[%clk 0:00:09.2]} 41... Rf1 {[%clk
0:00:02.3]} 42. Bf2 {[%clk 0:00:08.9]} 42... Nf5+ {[%clk 0:00:03]} 43. Kh2
{[%clk 0:00:07.4]} 43... Nxh4 {[%clk 0:00:03.4]} 44. Bxh4 {[%clk 0:00:07.4]}
44... Rc1 {[%clk 0:00:04.1]} 45. Bf2 {[%clk 0:00:06.6]} 45... Rxc3 {[%clk
0:00:04.6]} 46. d5 {[%clk 0:00:05.9]} 46... Rd3 {[%clk 0:00:05.2]} 47. Bxa7
{[%clk 0:00:05.9]} 47... Rxd5 {[%clk 0:00:05.7]} 48. Be3 {[%clk 0:00:05.8]}
48... c3 {[%clk 0:00:06.3]} 49. Kg3 {[%clk 0:00:05.6]} 49... c2 {[%clk
0:00:06.9]} 50. Kf2 {[%clk 0:00:05.6]} 50... Rd1 {[%clk 0:00:07.6]} 51. Ke2
{[%clk 0:00:06.1]} 51... c1=Q {[%clk 0:00:08.5]} 0-1

[Event "Early-Titled-Tuesday-Blitz-May-07-2024"]
[Site "Chess.com"]
[Date "2024.05.07"]
[Round "4"]
[White "AnnaChessLook"]
[Black "ravengelic"]
[Result "0-1"]
[WhiteElo "2312"]
[BlackElo "2635"]
[TimeControl "180+1"]
[EndTime "8:43:16 PDT"]
[Termination "ravengelic won by resignation"]

1. d4 {[%clk 0:03:00.9]} 1... Nf6 {[%clk 0:02:59.8]} 2. Nf3 {[%clk 0:02:59.5]}
2... g6 {[%clk 0:03:00.1]} 3. c4 {[%clk 0:02:59.1]} 3... Bg7 {[%clk 0:03:00.5]}
4. Nc3 {[%clk 0:02:59.4]} 4... d6 {[%clk 0:03:00.5]} 5. e4 {[%clk 0:02:59.1]}
5... O-O {[%clk 0:03:01]} 6. h3 {[%clk 0:02:58.9]} 6... c5 {[%clk 0:03:00.3]} 7.
d5 {[%clk 0:02:58.3]} 7... b5 {[%clk 0:02:59.7]} 8. cxb5 {[%clk 0:02:57]} 8...
a6 {[%clk 0:02:56.4]} 9. a4 {[%clk 0:02:57]} 9... Qa5 {[%clk 0:02:49.4]} 10. Bd2
{[%clk 0:02:55.5]} 10... axb5 {[%clk 0:02:47.3]} 11. Bxb5 {[%clk 0:02:54.6]}
11... Ba6 {[%clk 0:02:47.7]} 12. O-O {[%clk 0:02:46.8]} 12... Nbd7 {[%clk
0:02:47.1]} 13. Qc2 {[%clk 0:02:42.5]} 13... c4 {[%clk 0:02:42.7]} 14. Bc6
{[%clk 0:02:29.1]} 14... Rac8 {[%clk 0:02:24.5]} 15. Nb5 {[%clk 0:02:19.9]}
15... Qb6 {[%clk 0:02:11.4]} 16. Qxc4 {[%clk 0:02:18.6]} 16... Bb7 {[%clk
0:02:01.1]} 17. Be3 {[%clk 0:02:02]} 17... Qd8 {[%clk 0:01:59.8]} 18. Nfd4
{[%clk 0:01:57.3]} 18... Ne5 {[%clk 0:01:59.3]} 19. Qc2 {[%clk 0:01:56.2]} 19...
Nxc6 {[%clk 0:01:59.2]} 20. Nxc6 {[%clk 0:01:54.7]} 20... Qd7 {[%clk 0:01:56.3]}
21. Nbd4 {[%clk 0:01:53.2]} 21... e5 {[%clk 0:01:53.4]} 22. Nb5 {[%clk
0:01:34.4]} 22... Bxc6 {[%clk 0:01:48.6]} 23. dxc6 {[%clk 0:01:35.3]} 23... Rxc6
{[%clk 0:01:49.4]} 24. Qd3 {[%clk 0:01:30.2]} 24... d5 {[%clk 0:01:49.8]} 25.
exd5 {[%clk 0:01:29.3]} 25... Qxd5 {[%clk 0:01:50.7]} 26. Rfd1 {[%clk
0:01:27.9]} 26... Qe6 {[%clk 0:01:46.4]} 27. a5 {[%clk 0:01:12]} 27... e4 {[%clk
0:01:38.2]} 28. Qe2 {[%clk 0:00:58.2]} 28... Nd5 {[%clk 0:01:32.2]} 29. Bd4
{[%clk 0:00:51.7]} 29... Nf4 {[%clk 0:01:29.2]} 30. Qe3 {[%clk 0:00:48.1]} 30...
Qf5 {[%clk 0:01:27.8]} 31. Bxg7 {[%clk 0:00:46]} 31... Kxg7 {[%clk 0:01:28.7]}
32. Nd4 {[%clk 0:00:45.2]} 32... Qg5 {[%clk 0:01:25.3]} 33. Qxe4 {[%clk
0:00:42.7]} 33... Rf6 {[%clk 0:01:10.6]} 34. Kh2 {[%clk 0:00:29.8]} 34... Re8
{[%clk 0:01:10.8]} 35. Qb7 {[%clk 0:00:26.4]} 35... Re7 {[%clk 0:01:03.7]} 36.
Qa8 {[%clk 0:00:23.4]} 36... Ra6 {[%clk 0:01:03.5]} 37. Qf3 {[%clk 0:00:21.8]}
37... Rf6 {[%clk 0:00:46.5]} 38. Qg3 {[%clk 0:00:22.1]} 38... Qc5 {[%clk
0:00:39.6]} 39. a6 {[%clk 0:00:20.3]} 39... Ra7 {[%clk 0:00:37.3]} 40. Nb3
{[%clk 0:00:17.2]} 40... Qb6 {[%clk 0:00:36.8]} 41. Ra3 {[%clk 0:00:15.7]} 41...
Nh5 {[%clk 0:00:36.7]} 42. Qd3 {[%clk 0:00:14.5]} 42... Qxf2 {[%clk 0:00:33.7]}
43. Nd4 {[%clk 0:00:13.2]} 43... Nf4 {[%clk 0:00:29.4]} 44. Qg3 {[%clk
0:00:12.2]} 44... Qxb2 {[%clk 0:00:28.2]} 45. Rf3 {[%clk 0:00:09.7]} 45... Nh5
{[%clk 0:00:27]} 46. Qg4 {[%clk 0:00:09.3]} 46... Raxa6 {[%clk 0:00:26.8]} 47.
Nf5+ {[%clk 0:00:09.7]} 47... Rxf5 {[%clk 0:00:22.7]} 48. Rxf5 {[%clk
0:00:09.4]} 48... Qb8+ {[%clk 0:00:22]} 49. Kh1 {[%clk 0:00:09.2]} 49... Rb6
{[%clk 0:00:19.4]} 50. Rf3 {[%clk 0:00:09]} 50... Nf6 {[%clk 0:00:18.5]} 51. Qg5
{[%clk 0:00:09.1]} 51... h6 {[%clk 0:00:18.3]} 52. Qd2 {[%clk 0:00:09.6]} 52...
Re6 {[%clk 0:00:18.2]} 53. Qd4 {[%clk 0:00:10.1]} 53... Qe5 {[%clk 0:00:18.3]}
54. Rdf1 {[%clk 0:00:10.7]} 54... Qxd4 {[%clk 0:00:18.1]} 0-1

[Event "Early-Titled-Tuesday-Blitz-May-07-2024"]
[Site "Chess.com"]
[Date "2024.05.07"]
[Round "4"]
[White "ferdipy"]
[Black "ural58"]
[Result "1/2-1/2"]
[WhiteElo "2338"]
[BlackElo "2514"]
[TimeControl "180+1"]
[EndTime "8:43:16 PDT"]
[Termination "Game drawn - insufficient material"]

1. e4 {[%clk 0:03:00.9]} 1... e5 {[%clk 0:02:46]} 2. Nf3 {[%clk 0:02:56.9]} 2...
Nc6 {[%clk 0:02:45.3]} 3. Bc4 {[%clk 0:02:57.3]} 3... Nf6 {[%clk 0:02:44.5]} 4.
Ng5 {[%clk 0:02:57.6]} 4... d5 {[%clk 0:02:44]} 5. exd5 {[%clk 0:02:58.5]} 5...
Na5 {[%clk 0:02:43.7]} 6. Bb5+ {[%clk 0:02:59.2]} 6... Bd7 {[%clk 0:02:43.3]} 7.
Be2 {[%clk 0:02:59.9]} 7... Nxd5 {[%clk 0:02:27.4]} 8. d4 {[%clk 0:02:59.9]}
8... Be7 {[%clk 0:01:48]} 9. Nf3 {[%clk 0:02:59.4]} 9... e4 {[%clk 0:01:47.1]}
10. Ne5 {[%clk 0:02:59.8]} 10... O-O {[%clk 0:01:37.8]} 11. Nxd7 {[%clk
0:02:47.5]} 11... Qxd7 {[%clk 0:01:36.9]} 12. O-O {[%clk 0:02:48.4]} 12... b5
{[%clk 0:01:22.3]} 13. a4 {[%clk 0:02:39.7]} 13... b4 {[%clk 0:01:21.8]} 14. c4
{[%clk 0:02:38]} 14... bxc3 {[%clk 0:01:21.2]} 15. Nxc3 {[%clk 0:02:34.4]} 15...
Nxc3 {[%clk 0:01:08.3]} 16. bxc3 {[%clk 0:02:35.3]} 16... Qd5 {[%clk 0:01:07.8]}
17. Ba3 {[%clk 0:02:15.8]} 17... Bxa3 {[%clk 0:01:03.9]} 18. Rxa3 {[%clk
0:02:16.7]} 18... Rab8 {[%clk 0:00:59.9]} 19. Qc2 {[%clk 0:02:10.2]} 19... c5
{[%clk 0:00:44.7]} 20. Rd1 {[%clk 0:02:04.2]} 20... Rfc8 {[%clk 0:00:42.1]} 21.
c4 {[%clk 0:02:00.8]} 21... Qb7 {[%clk 0:00:26.4]} 22. d5 {[%clk 0:01:56.2]}
22... Qb2 {[%clk 0:00:26.1]} 23. Rc3 {[%clk 0:01:53.1]} 23... f5 {[%clk
0:00:21.2]} 24. f3 {[%clk 0:01:44]} 24... exf3 {[%clk 0:00:19.2]} 25. Bxf3
{[%clk 0:01:42.8]} 25... Qxc2 {[%clk 0:00:19.8]} 26. Rxc2 {[%clk 0:01:42.5]}
26... Rb4 {[%clk 0:00:20.5]} 27. d6 {[%clk 0:01:41.1]} 27... Rd8 {[%clk
0:00:20.1]} 28. d7 {[%clk 0:01:32]} 28... Kf8 {[%clk 0:00:20.1]} 29. Bd5 {[%clk
0:01:15]} 29... Rxa4 {[%clk 0:00:18.1]} 30. Be6 {[%clk 0:01:13.8]} 30... g6
{[%clk 0:00:17.4]} 31. Rb1 {[%clk 0:00:49.9]} 31... Ke7 {[%clk 0:00:15.2]} 32.
Re1 {[%clk 0:00:48.4]} 32... Kf6 {[%clk 0:00:15.1]} 33. Rb1 {[%clk 0:00:43.4]}
33... Nc6 {[%clk 0:00:14.3]} 34. Bd5 {[%clk 0:00:37.8]} 34... Nd4 {[%clk
0:00:12.8]} 35. Rcb2 {[%clk 0:00:36.2]} 35... Rxd7 {[%clk 0:00:12.7]} 36. Rb7
{[%clk 0:00:36.7]} 36... Rxb7 {[%clk 0:00:12.7]} 37. Rxb7 {[%clk 0:00:36]} 37...
Ra2 {[%clk 0:00:11.1]} 38. h4 {[%clk 0:00:35.4]} 38... h6 {[%clk 0:00:10]} 39.
Rc7 {[%clk 0:00:34.2]} 39... Ke5 {[%clk 0:00:08.2]} 40. Rxc5 {[%clk 0:00:32.8]}
40... Kf4 {[%clk 0:00:08.3]} 41. Rc6 {[%clk 0:00:32.2]} 41... Kg3 {[%clk
0:00:08.4]} 42. Rxg6+ {[%clk 0:00:32.6]} 42... Kxh4 {[%clk 0:00:08.6]} 43. Rxh6+
{[%clk 0:00:32.4]} 43... Kg3 {[%clk 0:00:09.2]} 44. Rg6+ {[%clk 0:00:32.8]}
44... Kf4 {[%clk 0:00:09.6]} 45. g3+ {[%clk 0:00:30.9]} 45... Ke3 {[%clk
0:00:09.1]} 46. c5 {[%clk 0:00:30]} 46... Rc2 {[%clk 0:00:08.2]} 47. c6 {[%clk
0:00:29.5]} 47... a5 {[%clk 0:00:06.6]} 48. Rg8 {[%clk 0:00:22.1]} 48... a4
{[%clk 0:00:06.1]} 49. Ra8 {[%clk 0:00:22.1]} 49... Rc5 {[%clk 0:00:06]} 50. Bg2
{[%clk 0:00:20.9]} 50... Rd5 {[%clk 0:00:04.9]} 51. Rxa4 {[%clk 0:00:20.7]}
51... Ne2+ {[%clk 0:00:05.8]} 52. Kh2 {[%clk 0:00:20.1]} 52... Rd6 {[%clk
0:00:06]} 53. Rc4 {[%clk 0:00:19.8]} 53... Rh6+ {[%clk 0:00:05.5]} 54. Bh3
{[%clk 0:00:19.5]} 54... f4 {[%clk 0:00:05.9]} 55. gxf4 {[%clk 0:00:19.3]} 55...
Nxf4 {[%clk 0:00:06.4]} 56. Rxf4 {[%clk 0:00:19.3]} 56... Kxf4 {[%clk
0:00:06.5]} 57. c7 {[%clk 0:00:20.2]} 57... Rc6 {[%clk 0:00:05.5]} 58. c8=Q
{[%clk 0:00:21.1]} 58... Rxc8 {[%clk 0:00:05.6]} 59. Bxc8 {[%clk 0:00:21.7]}
1/2-1/2

[Event "Early-Titled-Tuesday-Blitz-May-07-2024"]
[Site "Chess.com"]
[Date "2024.05.07"]
[Round "4"]
[White "Puzzlebot_1294"]
[Black "czechbul17"]
[Result "1-0"]
[WhiteElo "2624"]
[BlackElo "2131"]
[TimeControl "180+1"]
[EndTime "8:43:17 PDT"]
[Termination "Puzzlebot_1294 won by checkmate"]

1. d4 {[%clk 0:02:56]} 1... d6 {[%clk 0:02:59.7]} 2. e4 {[%clk 0:02:55]} 2...
Nf6 {[%clk 0:02:59.1]} 3. Nc3 {[%clk 0:02:55.1]} 3... Nbd7 {[%clk 0:02:59.1]} 4.
Nf3 {[%clk 0:02:53.2]} 4... e5 {[%clk 0:02:59.2]} 5. Bc4 {[%clk 0:02:53.3]} 5...
Be7 {[%clk 0:02:59.3]} 6. Qe2 {[%clk 0:02:51.6]} 6... O-O {[%clk 0:02:59.7]} 7.
h3 {[%clk 0:02:51.1]} 7... c6 {[%clk 0:02:59.5]} 8. a4 {[%clk 0:02:51.5]} 8...
b6 {[%clk 0:02:59.8]} 9. O-O {[%clk 0:02:50.3]} 9... Bb7 {[%clk 0:03:00]} 10.
Be3 {[%clk 0:02:47.6]} 10... a6 {[%clk 0:02:59.7]} 11. dxe5 {[%clk 0:02:42.8]}
11... Nxe5 {[%clk 0:02:48.7]} 12. Rad1 {[%clk 0:02:24]} 12... Nxc4 {[%clk
0:02:20.5]} 13. Qxc4 {[%clk 0:02:24.9]} 13... b5 {[%clk 0:02:20.4]} 14. Qd3
{[%clk 0:02:20.3]} 14... b4 {[%clk 0:02:11.3]} 15. Ne2 {[%clk 0:02:18.8]} 15...
a5 {[%clk 0:02:10.2]} 16. Bd4 {[%clk 0:01:53.6]} 16... Nd7 {[%clk 0:01:45.7]}
17. b3 {[%clk 0:01:38.3]} 17... Ba6 {[%clk 0:01:35.4]} 18. Qe3 {[%clk
0:01:36.1]} 18... Re8 {[%clk 0:01:27.4]} 19. Rfe1 {[%clk 0:01:36.2]} 19... Bf6
{[%clk 0:01:14.3]} 20. Ng3 {[%clk 0:01:33.5]} 20... d5 {[%clk 0:01:01.1]} 21.
Bxf6 {[%clk 0:01:20]} 21... Qxf6 {[%clk 0:00:45.6]} 22. e5 {[%clk 0:01:20.2]}
22... Qg6 {[%clk 0:00:42.5]} 23. Rd2 {[%clk 0:00:59.7]} 23... f6 {[%clk
0:00:33.5]} 24. e6 {[%clk 0:00:49.8]} 24... Nb8 {[%clk 0:00:12.9]} 25. Qf4
{[%clk 0:00:48.4]} 25... Ra7 {[%clk 0:00:09.3]} 26. Nf5 {[%clk 0:00:47.6]} 26...
Rf8 {[%clk 0:00:04.7]} 27. e7 {[%clk 0:00:47]} 27... Re8 {[%clk 0:00:03]} 28. g4
{[%clk 0:00:30.9]} 28... Rd7 {[%clk 0:00:01.9]} 29. Qd4 {[%clk 0:00:28]} 29...
Qf7 {[%clk 0:00:02]} 30. Qb6 {[%clk 0:00:27.1]} 30... Bb7 {[%clk 0:00:01.9]} 31.
Qxa5 {[%clk 0:00:26.7]} 31... Na6 {[%clk 0:00:02.3]} 32. Qb6 {[%clk 0:00:25.5]}
32... Nb8 {[%clk 0:00:02]} 33. Qxb4 {[%clk 0:00:25.4]} 33... Bc8 {[%clk
0:00:02]} 34. Nd6 {[%clk 0:00:24.5]} 34... Rxd6 {[%clk 0:00:02.4]} 35. Qxd6
{[%clk 0:00:24.4]} 35... h5 {[%clk 0:00:03.3]} 36. Qxb8 {[%clk 0:00:23.5]} 36...
hxg4 {[%clk 0:00:03.2]} 37. Nd4 {[%clk 0:00:23.1]} 37... gxh3 {[%clk 0:00:03.3]}
38. Qg3 {[%clk 0:00:22.6]} 38... Rxe7 {[%clk 0:00:02.4]} 39. Rxe7 {[%clk
0:00:20]} 39... Qxe7 {[%clk 0:00:03.3]} 40. Kh2 {[%clk 0:00:20.2]} 40... Qe1
{[%clk 0:00:02.9]} 41. Nf3 {[%clk 0:00:19.9]} 41... Qc1 {[%clk 0:00:02.7]} 42.
Re2 {[%clk 0:00:19.7]} 42... Bf5 {[%clk 0:00:02.7]} 43. Re8+ {[%clk 0:00:19.6]}
43... Kf7 {[%clk 0:00:02.6]} 44. Re2 {[%clk 0:00:17.6]} 44... Qh6 {[%clk
0:00:03.5]} 45. Qc7+ {[%clk 0:00:17]} 45... Kg8 {[%clk 0:00:03.6]} 46. Re8+
{[%clk 0:00:14.2]} 46... Kh7 {[%clk 0:00:04.1]} 47. Qg3 {[%clk 0:00:14.5]} 47...
Be4 {[%clk 0:00:04.1]} 48. Nh4 {[%clk 0:00:11.9]} 48... Qc1 {[%clk 0:00:02.8]}
49. Nf3 {[%clk 0:00:10.2]} 49... Qd1 {[%clk 0:00:02.6]} 50. Qxh3+ {[%clk
0:00:10.1]} 50... Kg6 {[%clk 0:00:03.1]} 51. Nh4+ {[%clk 0:00:08.6]} 51... Kg5
{[%clk 0:00:03.2]} 52. f4+ {[%clk 0:00:07.8]} 52... Kxf4 {[%clk 0:00:03.3]} 53.
Qg3# {[%clk 0:00:08.4]} 1-0

[Event "Early-Titled-Tuesday-Blitz-May-07-2024"]
[Site "Chess.com"]
[Date "2024.05.07"]
[Round "4"]
[White "JaackCamel"]
[Black "laysa_latifah"]
[Result "0-1"]
[WhiteElo "2254"]
[BlackElo "2263"]
[TimeControl "180+1"]
[EndTime "8:43:17 PDT"]
[Termination "laysa_latifah won on time"]

1. d4 {[%clk 0:02:59.7]} 1... d5 {[%clk 0:02:58.9]} 2. c4 {[%clk 0:02:59.4]}
2... e6 {[%clk 0:02:58.2]} 3. Nc3 {[%clk 0:02:58.2]} 3... Nf6 {[%clk 0:02:58.6]}
4. cxd5 {[%clk 0:02:58.1]} 4... exd5 {[%clk 0:02:58.2]} 5. Bg5 {[%clk
0:02:56.5]} 5... Be7 {[%clk 0:02:55.3]} 6. e3 {[%clk 0:02:56.4]} 6... O-O {[%clk
0:02:53.9]} 7. Bd3 {[%clk 0:02:56]} 7... Re8 {[%clk 0:02:50.6]} 8. Qc2 {[%clk
0:02:51.7]} 8... h6 {[%clk 0:02:50]} 9. Bh4 {[%clk 0:02:51.2]} 9... Nbd7 {[%clk
0:02:46.6]} 10. Nge2 {[%clk 0:02:50]} 10... c5 {[%clk 0:02:46.6]} 11. dxc5
{[%clk 0:02:49.5]} 11... Nxc5 {[%clk 0:02:47.1]} 12. O-O {[%clk 0:02:48.9]}
12... Be6 {[%clk 0:02:39.1]} 13. Nd4 {[%clk 0:02:47.7]} 13... Rc8 {[%clk
0:02:38.8]} 14. Nce2 {[%clk 0:02:36.8]} 14... Qb6 {[%clk 0:02:29.6]} 15. Rab1
{[%clk 0:02:23.2]} 15... Nfe4 {[%clk 0:02:17]} 16. Bxe7 {[%clk 0:02:16.7]} 16...
Rxe7 {[%clk 0:02:17.9]} 17. Nxe6 {[%clk 0:02:09.9]} 17... Qxe6 {[%clk 0:02:07]}
18. Nd4 {[%clk 0:02:06.2]} 18... Qd7 {[%clk 0:01:59.9]} 19. Rbc1 {[%clk
0:01:52.6]} 19... Rb8 {[%clk 0:01:31.6]} 20. Be2 {[%clk 0:01:38.4]} 20... Ne6
{[%clk 0:01:21.9]} 21. Bg4 {[%clk 0:01:18.4]} 21... Nf6 {[%clk 0:01:17.5]} 22.
Bxe6 {[%clk 0:01:15.8]} 22... fxe6 {[%clk 0:01:18.4]} 23. Qg6 {[%clk 0:01:08.2]}
23... Ree8 {[%clk 0:01:14.4]} 24. Rc3 {[%clk 0:01:03.8]} 24... Ne4 {[%clk
0:01:08.1]} 25. Rc2 {[%clk 0:00:58.4]} 25... Rbc8 {[%clk 0:00:41.3]} 26. Rfc1
{[%clk 0:00:55.1]} 26... Rxc2 {[%clk 0:00:40.4]} 27. Rxc2 {[%clk 0:00:55]} 27...
Kh8 {[%clk 0:00:34.1]} 28. h3 {[%clk 0:00:54.9]} 28... e5 {[%clk 0:00:30.4]} 29.
Nf5 {[%clk 0:00:46.3]} 29... Rf8 {[%clk 0:00:26]} 30. g4 {[%clk 0:00:38.7]}
30... Ng5 {[%clk 0:00:20.4]} 31. Kg2 {[%clk 0:00:31.7]} 31... Ne6 {[%clk
0:00:14.9]} 32. Rd2 {[%clk 0:00:27.6]} 32... Rf6 {[%clk 0:00:14.3]} 33. Qh5
{[%clk 0:00:21.8]} 33... d4 {[%clk 0:00:14.2]} 34. Kg3 {[%clk 0:00:18.1]} 34...
Qc7 {[%clk 0:00:12.8]} 35. e4 {[%clk 0:00:15.7]} 35... Qd7 {[%clk 0:00:12]} 36.
Kf3 {[%clk 0:00:10.4]} 36... Nf4 {[%clk 0:00:12.2]} 37. Qh4 {[%clk 0:00:10.6]}
37... Kh7 {[%clk 0:00:11.9]} 38. Qg3 {[%clk 0:00:10.6]} 38... Ne6 {[%clk
0:00:11.1]} 39. Qg1 {[%clk 0:00:10.2]} 39... Ng5+ {[%clk 0:00:11.5]} 40. Kg3
{[%clk 0:00:10.1]} 40... Nxe4+ {[%clk 0:00:12.2]} 41. Kh2 {[%clk 0:00:10.2]}
41... Nxd2 {[%clk 0:00:12.8]} 42. Qd1 {[%clk 0:00:09.8]} 42... Ne4 {[%clk
0:00:11.6]} 43. Qd3 {[%clk 0:00:09.8]} 43... Qd5 {[%clk 0:00:10.6]} 44. f3
{[%clk 0:00:09.9]} 44... Rc6 {[%clk 0:00:07.9]} 45. fxe4 {[%clk 0:00:09.3]}
45... Qc4 {[%clk 0:00:08.4]} 46. Qf3 {[%clk 0:00:08.5]} 46... Qc2+ {[%clk
0:00:08.7]} 47. Kg3 {[%clk 0:00:08.5]} 47... Qxb2 {[%clk 0:00:09.1]} 48. Kh4
{[%clk 0:00:07.9]} 48... Rc3 {[%clk 0:00:10]} 49. Qf1 {[%clk 0:00:07.1]} 49...
Qc1 {[%clk 0:00:09.1]} 0-1